Cogmind - Beta 14 X2 @@@ ROGUE MODE // 2024.07.31 @ 14:43:29 Player: Jazzer Result: Self-destructed Performance ------------- Evolutions (5) 2500 Regions Visited (7) 1400 Robots Destroyed (117) 585 Value Destroyed (2640) 2640 Prototype IDs (12) 240 Alien Tech Used (0) 0 Bonus (448) 448 TOTAL SCORE: 7813 Bonus ------- High Alert Combat Kills 11 Follower Combat Kills 276 Registered with UFD 300 Friendly Fire -139 Cogmind --------- Core Integrity 553/1000 Matter 300/300 Energy 100/100 System Corruption 6% Temperature Cool (0) Movement Core (100) Ox1 Location -5/Factory Parts ------- > --- POWER (2) -------- (None) > --- PROPULSION (5) --- (None) > --- UTILITY (7) ------ Improved Signal Interpreter Advanced Signal Interpreter Improved Melee Analysis Suite Advanced Melee Analysis Suite Improved Hacking Suite > --- WEAPON (3) ------- Companion Sword > --- INVENTORY (5) ---- Micro Antimatter Reactor Transmission Jammer Improved System Shield Long-range Missile Launcher DRS Beacon (Ready) Peak State ------------ > --- POWER ------------ Micro Nuclear Core Micro Fission Core > --- PROPULSION ------- Improved Flight Unit Improved Flight Unit Xenon Bombardment Thruster Nuclear Pulse Thruster Nuclear Pulse Thruster > --- UTILITY ---------- Medium Storage Unit Improved Signal Interpreter Advanced Signal Interpreter Improved Melee Analysis Suite Advanced Melee Analysis Suite Improved Hacking Suite Improved Hacking Suite > --- WEAPON ----------- Long-range Missile Launcher Companion Sword > --- INVENTORY -------- Improved Flight Unit Structural Scanner Transmission Jammer Phase Shifter Hacking Suite Improved System Shield Falx DRS Beacon [Rating: 72] Favorites ----------- Power Heavy Ion Engine Engine Heavy Ion Engine Power Core Light Nuclear Core Reactor Micro Antimatter Reactor Propulsion Light Treads Treads Light Treads Wheel Wheel Flight Unit Improved Flight Unit Utility Huge Storage Unit Device Seismic Detector Storage Huge Storage Unit Processor Transport Network Coupler Hackware Improved Hacking Suite Protection Medium Armor Plating Weapon Flak Cannon Energy Gun Improved EM Shotgun Energy Cannon Advanced Beam Cannon Ballistic Gun Heavy Assault Rifle Ballistic Cannon Flak Cannon Launcher Long-range Missile Launcher Impact Weapon Heavy Mace Slashing Weapon Companion Sword Build | -11 -10 -9 -9 -9 -9 -6 -5 ------- Run | Yrd Mat Mat Sto Rec Scr Fac Fac Slots Evolved 10 | . . 2 . . . 6 2 Power 1 | . . . . . . 1 . Propulsion 3 | . . 1 . . . 2 . Utility 5 | . . . . . . 3 2 Weapon 1 | . . 1 . . . . . Parts Attached 109 | 7 7 21 21 1 2 15 35 Power 10 | 1 . 2 1 . . 1 5 Engine 4 | 1 . 2 1 . . . . Core 5 | . . . . . . 1 4 Reactor 1 | . . . . . . . 1 Propulsion 27 | 2 . 6 8 . 2 2 7 Treads 17 | 2 . 5 7 . 2 1 . Leg . | . . . . . . . . Wheel 1 | . . 1 . . . . . Hover . | . . . . . . . . Flight 9 | . . . 1 . . 1 7 Utility 34 | 2 2 3 1 . . 7 19 Device 20 | 1 1 . . . . 3 15 Storage 5 | 1 1 1 1 . . . 1 Processor 5 | . . 1 . . . 1 3 Hackware 2 | . . . . . . 2 . Protection 2 | . . 1 . . . 1 . Artifact . | . . . . . . . . Weapon 38 | 2 5 10 11 1 . 5 4 Energy Gun 1 | . . 1 . . . . . Energy Cannon 1 | . . . 1 . . . . Ballistic Gun 16 | 2 3 5 5 1 . . . Ballistic Cannon 4 | . . 2 . . . 2 . Launcher 1 | . . . . . . . 1 Special Weapon . | . . . . . . . . Impact Weapon 6 | . . 1 5 . . . . Slashing Weapon 9 | . 2 1 . . . 3 3 Piercing Weapon . | . . . . . . . . Special Melee Weapon . | . . . . . . . . Unidentified Prototypes 5 | . . 2 2 . . 1 . Parts Lost 21 | . 2 3 . . . . 16 Power 3 | . . . . . . . 3 Propulsion 8 | . 1 1 . . . . 6 Utility 6 | . . . . . . . 6 Weapon 4 | . 1 2 . . . . 1 Highest Loss Streak 4 | . 1 1 . . . . 4 To Critical Strikes . | . . . . . . . . Average Slot Usage (%) 94 | . 87 92 100 100 100 91 81 Engine 9 | . 14 10 11 11 11 6 . Core 1 | . . . . . . 4 8 Treads 27 | . 26 28 33 33 33 24 . Flight 2 | . . . . . . 3 25 Device 2 | . 4 . . . . 10 5 Storage 10 | . 14 11 11 11 11 6 5 Processor 2 | . . 8 . . . . 17 Hackware 1 | . . . . . . 8 8 Protection 6 | . . . 11 11 11 4 . Ballistic Gun 11 | . 27 16 9 9 11 4 . Ballistic Cannon 15 | . . 14 22 22 22 14 . Naked Turns . | . . . . . . . . Heaviest Build 119 | 14 30 70 110 110 110 119 109 Greatest Support 89 | 40 40 60 60 60 66 89 28 Greatest Overweight (x) 7 | 3 1 1 1 1 1 1 7 Average Overweight (x) . | . . . 1 1 1 1 . Largest Inventory Capacity 25 | 8 15 20 25 25 25 25 25 Average Capacity 21 | 7 13 17 24 25 25 25 10 Most Carried 25 | 6 15 20 25 25 25 25 25 Average Carried 20 | 4 11 16 24 25 24 24 9 Final Capacity 25 | 8 15 20 25 25 25 25 5 Final Carried 25 | 6 14 20 25 25 25 25 5 Class Distribution -------------------- 43% | Commander-Tank 18% | Mutant 13% | Tank 4% | Scavenger-Skirmisher 4% | Skirmisher 3% | Hacker-Sprinter Dominant Class ---------------- Mutant | -10/Materials Scavenger-Skirmisher | -9/Materials Tank | -9/Storage Commander-Tank | -9/Recycling Commander-Tank | -9/Scraptown Commander-Tank | -6/Factory Hacker-Sprinter | -5/Factory Resources | -11 -10 -9 -9 -9 -9 -6 -5 ----------- Run | Yrd Mat Mat Sto Rec Scr Fac Fac Matter Collected 2842 | 278 298 534 701 67 15 478 471 Remotely . | . . . . . . . . Salvage Created 3988 | 116 591 803 915 40 . 683 840 Parts 256 | 6 43 48 71 2 . 35 51 Haulers Intercepted 11 | . 2 5 4 . . . . Recyclers Shooed 6 | 1 . 1 . . . 2 2 Parts Field Recycled . | . . . . . . . . Retrieved Matter . | . . . . . . . . Parts Self-Destructed . | . . . . . . . . Prevented . | . . . . . . . . Kills | -11 -10 -9 -9 -9 -9 -6 -5 ------- Run | Yrd Mat Mat Sto Rec Scr Fac Fac Combat Hostiles Destroyed 64 | . 15 18 16 1 . 6 8 Melee 4 | . . . . . . . 4 Guns 30 | . 15 14 1 . . . . Cannons 26 | . . 4 15 1 . 6 . AOE 4 | . . . . . . . 4 Classes Destroyed 13 | 2 6 2 1 . . 1 1 Worker 13 | . . 1 3 . . 6 3 Builder 8 | . 1 . 1 . . 2 4 Tunneler 2 | 1 . . . . . . 1 Hauler 11 | . 2 5 4 . . . . Recycler 10 | 1 1 1 1 . . 4 2 Mechanic 1 | . . . . . . . 1 Operator 3 | . 1 . . . . . 2 Watcher 4 | . 1 . 2 . . 1 . Swarmer 23 | . 9 8 . . . 2 4 Grunt 22 | . 6 6 7 . . 3 . Brawler 1 | . . . 1 . . . . Sentry 13 | . . 4 8 1 . . . Programmer 6 | . . . . . . 2 4 Best Kill Streak 9 | 2 7 6 5 1 . 5 9 Combat Bots Only 6 | . 4 6 3 1 . 2 4 Max Kills in Single Turn 5 | 1 2 2 2 1 . 2 5 Gunslinging 1 | . . 1 . . . . . Exploded 4 | . . . . . . . 4 Melee 1 | . . . . . . . 1 Uniques/NPCs Destroyed . | . . . . . . . . Combat | -11 -10 -9 -9 -9 -9 -6 -5 -------- Run | Yrd Mat Mat Sto Rec Scr Fac Fac Hostile Shots Fired 342 | . 100 78 21 2 . 21 120 Missed 112 | . 24 31 7 2 . 9 39 Damage Taken 3074 | . 713 479 188 39 . 234 1421 Core 752 | . 177 34 56 26 . 12 447 Absorbed by Shields 25 | . . . . . . 19 6 Regen/Repaired (Parts) 153 | . . . 153 . . . . Core Remaining (%) 74 | 100 29 . . . 71 98 . Volleys Fired 158 | 8 45 44 30 2 . 26 3 Largest 3 | 1 2 3 3 3 . 3 1 Hottest 132 | 20 40 111 111 111 . 132 43 Shots Fired 395 | 8 90 121 90 6 . 78 2 Gun 238 | 8 90 99 30 2 . 9 . Cannon 155 | . . 22 60 4 . 69 . Launcher 2 | . . . . . . . 2 Special . | . . . . . . . . Kinetic 393 | 8 90 121 90 6 . 78 . Thermal . | . . . . . . . . Explosive 2 | . . . . . . . 2 Electromagnetic . | . . . . . . . . Robot Hit Streak 15 | 5 14 12 15 6 . 7 5 Robot Miss Streak 11 | 2 4 4 5 3 . 11 . Penetration Max . | . . . . . . . . Secondary Targets 7 | . 5 2 . . . . . Max Gunslinging Chain 1 | . 1 1 . . . . . Shots Hit Robots 322 | 6 51 83 70 6 . 64 42 Core Hits 234 | 3 29 54 67 4 . 62 15 Critical Kills 1 | . . . 1 . . . . Critical Parts Destroyed 1 | . 1 . . . . . . Critical Strikes 2 | . 1 . 1 . . . . Destroy 2 | . 1 . 1 . . . . Melee Attacks 104 | . 7 4 15 . . 9 69 Impact 18 | . . 3 15 . . . . Slashing 86 | . 7 1 . . . 9 69 Piercing . | . . . . . . . . Sneak Attacks 22 | . . 1 1 . . 6 14 Combat Hostiles . | . . . . . . . . Follow-up Attacks 4 | . . . . . . . 4 Damage Inflicted 8334 | 55 674 1362 1391 148 . 1550 3154 Guns 2014 | 53 667 838 361 32 . 63 . Cannons 2437 | . . 433 896 85 . 1023 . Explosions 484 | . . . . . . . 484 Melee 3293 | . . 86 76 . . 461 2670 Ramming 106 | 2 7 5 58 31 . 3 . Kinetic 4451 | 53 667 1271 1257 117 . 1086 . Thermal . | . . . . . . . . Explosive 484 | . . . . . . . 484 Electromagnetic . | . . . . . . . . Impact 162 | . . 86 76 . . . . Slashing 3131 | . . . . . . 461 2670 Piercing . | . . . . . . . . Highest Corruption 6 | . . . . . . . 6 Average Corruption 5 | . . . . . . . 5 Corruption Purged . | . . . . . . . . Corruption Blocked . | . . . . . . . . Effects 7 | . . . . . . . 7 Message Errors 2 | . . . . . . . 2 Matter Fused 1 | . . . . . . . 1 Energy Discharges 1 | . . . . . . . 1 Parts Rejected 1 | . . . . . . . 1 Data Loss (minor) 1 | . . . . . . . 1 Weapon Failures 1 | . . . . . . . 1 Overload Shots . | . . . . . . . . Overflow Damage 1121 | . . 46 . . . 172 903 Projectiles 4 | . . . . . . 4 . Explosions 94 | . . . . . . . 94 Melee 1023 | . . 46 . . . 168 809 Knockbacks 34 | . . 1 15 . . 18 . Impact 1 | . . 1 . . . . . Kinetic 32 | . . . 14 . . 18 . Secondary 1 | . . . 1 . . . . Self-Inflicted Damage . | . . . . . . . . Shots . | . . . . . . . . Rammed 10 | 1 2 1 4 2 . . . Targets Rammed 12 | 1 2 1 5 2 . 1 . Kicked . | . . . . . . . . Crushed 2 | . . . 1 . . 1 . Highest Temperature 278 | . 26 84 278 54 . 276 22 Average Temperature 51 | . 12 26 70 33 . 98 4 Received Heat Transfer 487 | . 216 144 63 . . 37 27 Siege Activations . | . . . . . . . . Robots Corrupted 1 | . . 1 . . . . . Combat Hostiles . | . . . . . . . . Parts Fried 2 | . . 2 . . . . . Impact Corruptions 2 | . . 2 . . . . . Robots Melted . | . . . . . . . . Combat Hostiles . | . . . . . . . . Parts Melted . | . . . . . . . . Heat Transferred . | . . . . . . . . Parts Sabotaged . | . . . . . . . . Parts Stolen . | . . . . . . . . Parts Stripped . | . . . . . . . . Power Chain Reactions . | . . . . . . . . Alert | -11 -10 -9 -9 -9 -9 -6 -5 ------- Run | Yrd Mat Mat Sto Rec Scr Fac Fac Peak Influence 501 | 10 174 336 421 273 . 344 501 Initial 107 | . 6 22 66 105 . . 107 Average 164 | 3 42 155 234 158 . 168 237 Maximum Alert Level 2 | . . 1 2 1 . 1 2 Low Security (%) 64 | 100 100 81 31 79 . 53 55 Level 1 34 | . . 18 67 20 . 46 34 Level 2 1 | . . . 1 . . . 10 Level 3 . | . . . . . . . . Level 4 . | . . . . . . . . Level 5 . | . . . . . . . . High Security . | . . . . . . . . Max Security . | . . . . . . . . Squads Dispatched 11 | . 2 2 1 . . 4 2 Investigation 2 | . 1 1 . . . . . Extermination 2 | . . . . . . 2 . Reinforcement 6 | . 1 1 1 . . 1 2 Assault 1 | . . . . . . 1 . Garrison . | . . . . . . . . Intercept . | . . . . . . . . Searches Triggered 1 | . . . . . . . 1 Construction Impeded 1 | . . . . . . . 1 Haulers Reinforced . | . . . . . . . . Active Scanning Responses . | . . . . . . . . Cargo Convoy Interrupts . | . . . . . . . . Stealth | -11 -10 -9 -9 -9 -9 -6 -5 --------- Run | Yrd Mat Mat Sto Rec Scr Fac Fac Distress Signals 9 | . 1 1 3 . . 1 3 Communications Jammed . | . . . . . . . . Distress Signals . | . . . . . . . . Times Spotted 125 | . 25 22 24 5 . 19 30 Peak Tracking Total 11 | . 5 5 5 4 . 3 11 Tactical Retreats 13 | . 2 1 1 . . 2 7 Traps | -11 -10 -9 -9 -9 -9 -6 -5 ------- Run | Yrd Mat Mat Sto Rec Scr Fac Fac Traps Triggered 7 | . 1 1 2 . . . 3 Indirectly . | . . . . . . . . Trap Hack Attempts . | . . . . . . . . Triggered . | . . . . . . . . Disarmed . | . . . . . . . . Reprogrammed . | . . . . . . . . Reused . | . . . . . . . . Traps Extracted . | . . . . . . . . Installed . | . . . . . . . . Triggered . | . . . . . . . . Machines | -11 -10 -9 -9 -9 -9 -6 -5 ---------- Run | Yrd Mat Mat Sto Rec Scr Fac Fac Machines Disabled 9 | . . . 1 . . 8 . Max in Single Turn 1 | . . . 1 . . . . Garrison Access 3 | . . . 1 . . 2 . Machines Repaired . | . . . . . . . . Machines Dismantled . | . . . . . . . . Machines Sabotaged . | . . . . . . . . Overloaded Fab Kills . | . . . . . . . . Hacking | -11 -10 -9 -9 -9 -9 -6 -5 --------- Run | Yrd Mat Mat Sto Rec Scr Fac Fac Machines Accessed 37 | . 9 8 12 2 1 2 3 Terminals 26 | . 7 6 9 . . 1 3 Fabricators . | . . . . . . . . Repair Stations 1 | . . . 1 . . . . Recycling Units 7 | . 2 2 1 2 . . . Scanalyzers . | . . . . . . . . Garrison Access 2 | . . . 1 . . 1 . Total Hacks 102 | . 27 27 34 2 1 3 8 Successful 63 | . 15 17 20 2 1 2 6 Failed 39 | . 12 10 14 . . 1 2 Catastrophic 3 | . . . 3 . . . . Database Lockouts . | . . . . . . . . Manual 72 | . 25 23 15 2 . 2 5 Terminals 84 | . 24 23 27 . . 2 8 Fabricators . | . . . . . . . . Repair Stations 2 | . . . 2 . . . . Recycling Units 11 | . 3 4 2 2 . . . Scanalyzers . | . . . . . . . . Garrison Access 4 | . . . 3 . . 1 . Terminal Hacks 22 | . 4 5 10 . 1 . 2 Part Schematic 2 | . . . 2 . . . . Robot Analysis 6 | . 2 4 . . . . . Prototype ID Bank 2 | . . 1 1 . . . . Open Door 3 | . . . 2 . 1 . . Branch Access Points 1 | . . . . . . . 1 Terminal Index 1 | . . . . . . . 1 Unreport Threat 1 | . 1 . . . . . . Locate Traps 4 | . 1 . 3 . . . . Registered Prototypes 1 | . . . 1 . . . . Zone Layout 1 | . . . 1 . . . . Fabricator Hacks . | . . . . . . . . Repair Station Hacks 2 | . . . 2 . . . . Scan Component 1 | . . . 1 . . . . Repair 1 | . . . 1 . . . . Recycling Unit Hacks . | . . . . . . . . Scanalyzer . | . . . . . . . . Garrison Access Hacks 2 | . . . 1 . . 1 . Seal Access 2 | . . . 1 . . 1 . Unauthorized Hacks 37 | . 11 12 7 2 . 1 4 Terminals 26 | . 8 8 5 . . 1 4 Botnet 10 | . 2 2 3 . . 1 2 Disrupt 1 | . . . 1 . . . . Operators 2 | . . 1 1 . . . . Skim 13 | . 6 5 . . . . 2 Fabricators . | . . . . . . . . Repair Stations . | . . . . . . . . Recycling Units 11 | . 3 4 2 2 . . . Reject 5 | . 2 2 1 . . . . Recyclers 3 | . 1 1 1 . . . . Mask 1 | . . 1 . . . . . Tunnel 2 | . . . . 2 . . . Scanalyzers . | . . . . . . . . Garrison Access . | . . . . . . . . Data Cores Recovered 1 | . . . . . . . 1 Used 1 | . . . . . . . 1 Hacking Detections 23 | . 6 6 7 . . 1 3 Full Trace Events . | . . . . . . . . Feedback Events . | . . . . . . . . Feedback Blocked . | . . . . . . . . Robot Schematics Acquired . | . . . . . . . . Robots Built . | . . . . . . . . Authchips . | . . . . . . . . Time . | . . . . . . . . Total Robot Build Rating . | . . . . . . . . Part Schematics Acquired 2 | . . . 2 . . . . Parts Built . | . . . . . . . . Authchips . | . . . . . . . . Time . | . . . . . . . . Total Part Build Rating . | . . . . . . . . Parts Repaired 1 | . . . 1 . . . . Time 26 | . . . 26 . . . . Parts Recycled . | . . . . . . . . Recycled Matter . | . . . . . . . . Retrieved Matter . | . . . . . . . . Retrieved Components . | . . . . . . . . Parts Scanalyzed . | . . . . . . . . Part Schematics Acquired . | . . . . . . . . Parts Damaged . | . . . . . . . . Bothacking | -11 -10 -9 -9 -9 -9 -6 -5 ------------ Run | Yrd Mat Mat Sto Rec Scr Fac Fac Used RIF Installer . | . . . . . . . . Robots Hacked . | . . . . . . . . Non-combat . | . . . . . . . . Combat . | . . . . . . . . Robot Hacks Applied . | . . . . . . . . Relay Couplers Released 4 | . . . . . . 1 3 Machine Destruction 1 | . . . . . . 1 . Programmers 3 | . . . . . . . 3 Fabnet Peak Effective % . | . . . . . . . . Robots Rewired 9 | . . . . 9 . . . Allies Hacked . | . . . . . . . . Hacks Repelled . | . . . . . . . . Allies | -11 -10 -9 -9 -9 -9 -6 -5 -------- Run | Yrd Mat Mat Sto Rec Scr Fac Fac Total Allies 22 | . . . 10 9 . . 3 Largest Group 18 | . . . 10 18 18 18 3 Highest-Rated Group 203 | . . . 88 203 203 203 93 Highest-Rated Ally 31 | . . . 16 27 27 27 31 Total Orders . | . . . . . . . . Ally Attacks 112 | . . . . 13 . 70 29 Total Damage 2019 | . . . . 127 . 1342 550 Kills 13 | . . . . 3 . 9 1 Allies Corrupted . | . . . . . . . . Allies Melted . | . . . . . . . . Intel | -11 -10 -9 -9 -9 -9 -6 -5 ------- Run | Yrd Mat Mat Sto Rec Scr Fac Fac Robot Analysis Total 6 | . 2 4 . . . . . Derelict Logs Recovered . | . . . . . . . . Drone Launches . | . . . . . . . . Drone Recoveries . | . . . . . . . . Exploration | -11 -10 -9 -9 -9 -9 -6 -5 ------------- Run | Yrd Mat Mat Sto Rec Scr Fac Fac Turns Passed 9503 | 108 1115 1378 1644 462 2771 1338 687 Spaces Moved 4410 | 47 533 487 549 151 1147 471 1025 Core 15 | 14 . . . . . . 1 Treads 3371 | 33 533 487 549 151 1147 471 . Legs . | . . . . . . . . Wheels . | . . . . . . . . Hover . | . . . . . . . . Flight 1024 | . . . . . . . 1024 Fastest Speed 28 | 50 160 160 240 240 240 240 28 Average Speed 179 | 160 169 213 240 240 240 240 33 Slowest Speed 400 | 200 240 240 240 240 240 240 400 Overloaded Moves . | . . . . . . . . Propulsion Burnouts . | . . . . . . . . Robots Hopped 1 | . . . . . . . 1 Cave-ins Triggered . | . . . . . . . . Exploration Rate (%) 50 | 4 95 47 83 41 76 19 36 Regions Visited 7 Branch Regions 3 Pre-discovered Areas 8 | . 2 3 1 2 . . . Known Exits Taken 3 | . . 1 . 1 . 1 . Unknown Exits Taken 4 | 1 1 . 1 . 1 . . Scrap Searched 5 | . . . . . 5 . . Spaces Dug 38 | . 5 3 6 . . 2 22 Terrain Destroyed 56 | . 5 3 6 . . 2 40 Melee 38 | . 5 3 6 . . 2 22 Projectile . | . . . . . . . . AOE 18 | . . . . . . . 18 Terrain Rammed . | . . . . . . . . Walls Destroyed . | . . . . . . . . Machines Disabled . | . . . . . . . . Actions | -11 -10 -9 -9 -9 -9 -6 -5 --------- Run | Yrd Mat Mat Sto Rec Scr Fac Fac Total 5503 | 69 643 729 779 244 1171 606 1262 Wait 459 | 1 37 131 128 13 7 68 74 Move 4402 | 47 532 486 548 150 1146 470 1023 Hop 1 | . . . . . . . 1 Pick Up 72 | 6 9 23 13 . 8 9 4 Fast Attach 20 | 7 . 5 . . . 4 4 Attach 21 | . 2 5 . . . 4 10 Detach 9 | . 2 3 . . . . 4 Swap 68 | . 5 11 21 1 2 7 21 Drop 65 | . 2 16 14 . 8 8 17 Fire 158 | 8 45 44 30 2 . 26 3 Melee 100 | . 7 4 15 . . 9 65 Ram . | . . . . . . . . Kick . | . . . . . . . . Crush 11 | . 2 1 5 2 . 1 . Escape Stasis 40 | . . . 4 . . . 36 Rewire 77 | . . . 1 76 . . . Trap . | . . . . . . . . Miscellaneous . | . . . . . . . . Route ------- -11/Scrapyard -10/Materials (discovered 4 exits: *Mat x3 / [*Min]) -9/Materials (discovered 5 exits: *Mat x2 / Min / *Sto x2) -9/Storage (discovered 2 exits: *Mat / *Rec) -9/Recycling -9/Scraptown -6/Factory -5/Factory (discovered 3 exits: *Fac / Upp x2) History --------- Turn | Location | Event 27 | -11/Scrapyard | Discovered new exit (range 14) 109 | -11/Scrapyard | Entered Materials 242 | -10/Materials | Discovered new exit (range 14) 308 | -10/Materials | Build established: Mutant 465 | -10/Materials | Discovered new exit (range 13) 782 | -10/Materials | Discovered new exit (range 9) 925 | -10/Materials | Discovered new exit (range 4) 991 | -10/Materials | Core integrity fell below 50% 1009 | -10/Materials | Learned Storage machine intel 1041 | -10/Materials | Learned Storage stockpile data 1078 | -10/Materials | Learned 2 Storage zone layouts 1084 | -10/Materials | Learned 2 Mines zone layouts 1224 | -10/Materials | Entered another Materials area 1224 | -9/Materials | Evolved 2 slots: Propulsion x1, Weapon x1 1224 | -9/Materials | Discovered new exit (range 15) 1225 | -9/Materials | Identified exit to Mines 1827 | -9/Materials | Discovered new exit (range 6) 2305 | -9/Materials | Build established: Scavenger-Skirmisher 2384 | -9/Materials | Identified exit to Storage 2384 | -9/Materials | Identified exit to Materials 2426 | -9/Materials | Learned location of Zion (-6) 2459 | -9/Materials | Learned location of 1 exit from Recycling 2483 | -9/Materials | Learned location of 2 exits from Materials 2558 | -9/Materials | Loaded intel: 45 non-interactive machine locations 2602 | -9/Materials | Entered Storage 2606 | -9/Storage | Loaded intel: 45 machine locations 2981 | -9/Storage | Used back door to open Recycling access 2981 | -9/Storage | Discovered new exit (range 5) 3645 | -9/Storage | Build established: Tank 3695 | -9/Storage | Repaired Med. Storage Unit 4046 | -9/Storage | Learned location of Armory (-3) 4097 | -9/Storage | Assisted by bots powering up and referring to "LRC-V3" 4246 | -9/Storage | Entered Recycling 4246 | -9/Recycling | Accompanied by 10 allies 4247 | -9/Recycling | Identified exit to Scraptown 4598 | -9/Recycling | Build established: Commander-Tank 4635 | -9/Recycling | Scanned before Scraplab entrance 4669 | -9/Recycling | Entered Scraplab 4708 | -9/Recycling | Entered Scraptown 4708 | -9/Scraptown | Accompanied by 18 allies 5015 | -9/Scraptown | Heard Great Nut preacher, LISTEN AND RECITE! 5142 | -9/Scraptown | Visited TADAMA 5178 | -9/Scraptown | Visited Cave Peace 5300 | -9/Scraptown | Visited IN-MT5's Study 5360 | -9/Scraptown | Visited SPCMW 5380 | -9/Scraptown | Visited Fellowship of the Rings 5418 | -9/Scraptown | Visited Spacefarers 5461 | -9/Scraptown | Visited Bundlers 5900 | -9/Scraptown | Visited UFD Registry 5900 | -9/Scraptown | Registered with UFD as "Nanosourcer" 5964 | -9/Scraptown | Visited Chapter 10 6051 | -9/Scraptown | Visited A0-MCA Data Center 6065 | -9/Scraptown | Given a B+ rating by A0-MCA 6108 | -9/Scraptown | Visited Observation Area 6344 | -9/Scraptown | Visited Curators Association 6420 | -9/Scraptown | Visited Derelict Rescue Squad 6489 | -9/Scraptown | Visited Sword Containment 6557 | -9/Scraptown | Visited Research Penetration Think Tank 6610 | -9/Scraptown | Visited Botcube Research 6662 | -9/Scraptown | Visited Scrapoid Research Area 6701 | -9/Scraptown | Visited Junk Repository 7457 | -9/Scraptown | Discovered new exit (range 5) 7479 | -9/Scraptown | Entered Factory 7479 | -6/Factory | Accompanied by 18 allies 7479 | -6/Factory | Evolved 6 slots: Power x1, Propulsion x2, Utility x3 7646 | -6/Factory | Lost 3 allies 7873 | -6/Factory | Lost 4 allies 8194 | -6/Factory | Discovered new exit (range 10) 8816 | -6/Factory | Identified exit to Factory 8817 | -6/Factory | Entered another Factory area 8817 | -5/Factory | Evolved 2 slots: Utility x2 8977 | -5/Factory | Discovered new exit (range 15) 8981 | -5/Factory | Identified exit to Factory 9032 | -5/Factory | Identified exit to Upper Caves 9164 | -5/Factory | Lost 3 parts (1p2u) 9164 | -5/Factory | Allied Derelicts emerged from ambush trap array 9184 | -5/Factory | Spotted B-75 Beast 9280 | -5/Factory | Lost 4 parts (1p2n1u) 9417 | -5/Factory | Search patrols dispatched 9490 | -5/Factory | Lost 4 parts (3n1u) 9504 | -5/Factory | Self-destructed Last Messages --------------- 09459_ Structural Scanner destroyed. 09469_ U-05 Engineer builds a Door. 09482_ Slug penetrates Wall. 09483_ Slug penetrates Power Conduit. 09491_ Penetrated by Slug. 09491_ Imp. Flight Unit destroyed. 09493_ System corrupted: Imp. Flight Unit rejected. 09493_ Slug penetrates Wall. 09494_ Penetrated by Slug. 09496_ Slug penetrates Wall. 09497_ Wall collapses. 09497_ Penetrated by Slug. 09499_ Slug penetrates Wall. 09499_ Destroyed Phase Shifter. 09500_ Penetrated by Slug. 09500_ Mic. Fission Core destroyed. 09501_ Falx destroyed. 09501_ Penetrated by Slug. 09502_ Med. Storage Unit destroyed. 09503_ Penetrated by Slug. Map ----- +----------------------------------------------------+ | ????????????? #### ######## | | ????????????????????????????## # | | ????????????????????????????## | | ????????????????????????????## ###+######## | | ????????????????????????????### ## ##### ???? | | ????????????????????????????### ## ##???????? | | ?????????????????????????????## ## """##???????? | | ?????????????????????????????## ## """##???????? | | ?????????????????????????????## ## """##???????? | | ?????????????????????????????## ## ##???????? | | ?????????????????????????????## ##########???????? | | ?????????????????????????????## ##########???????? | | ?????????????????????????????## ##???????????????? | | ??????????????????########???## ##???????????????? | | ??????????????????# #??## ##???????????????? | | ??????????????????+ #??## ##???????????????? | | ??????????????????# #??## ##???????????????? | | ??????????????????# #??## ##???????????????? | | ??????????????????# #####+#######??????????? | | ??????????????????# # #?????????? | | ??????????????????# # "g" " " " #?????????? | | ??????????????????# # " " " " " ##????????? | | ??????????????????# # " " " " " ##????????? | | ??????????????????# hh" " " " " ##????????? | | ??????????????????# h; " " " " " ##????????? | | ??????????????????# @# " " " " " ##????????? | | ??????????????????# =# " " " " " ???????????? | | ??????????????????# # " " " " "????????????? | | ??????????????????# # " " " ???????????????? | | ??????????????????# # ???????????????? | | ??????????????????# # ???????????????? | | ??????????????????#######;#######????????????????? | | ???????????????????????? ??? ????????????????? | | ???????????????????????? ??????????????????????? | | ???????????????????????? ??????????????????????? | | ???????????????????????? ??????????????????????? | | ???????????????????????? ??????????????????????? | | ????????????????????????###??????????????????????? | | ?????????????????????????????????????????????????? | | ?????????????????????????????????????????????????? | | ?????????????????????????????????????????????????? | | ?????????????????????????????????????????????????? | | ?????????????????????????????????????????????????? | | ?????????????????????????????????????????????????? | | ?????????????????????????????????????????????????? | | ?????????????????????????????????????????????????? | | ?????????????????????????????????????????????????? | | ?????????????????????????????????????????????????? | | ?????????????????????????????????????????????????? | | ?????????????????????????????????????????????????? | +----------------------------------------------------+ Best States ------------- Heat Dissipation 64 Energy Generation 29 Energy Capacity 340 Matter Stores 300 Matter Capacity 300 Sight Range 16 Robot Scan Range 15 Terrain Scan Density 10 Armor Coverage 225 Evasion (%) 64 Melee Accuracy 14 Recoil Reduction 4 Offensive Hacking 24 Item Schematics ----------------- Arm. Treads | -9/Storage | Hacked Imp. Melee Analysis Suite | -9/Storage | Hacked Robot Schematics ------------------ None Fabricated ------------ Nothing Alien Tech Used ----------------- None Achievements -------------- None Challenges ------------ None Game ------ Seed CarbideSubdwellerBroadsword Manual? 0 Play Time 01:23:26 Cumulative 374.1 hours Start 2024.07.31 @ 13:22:01 End 2024.07.31 @ 14:43:29 Sessions 1 Manual Loads 0 Difficulty Rogue Special Mode None Game No. 226 Rogue 226 Adventurer 0 Explorer 0 Win Type - Total 2 Types 2/0/0/0/0/0/0/0/0 Lore% 71 Gallery% 69 Achievement% 53 Wizard Run 0 Options --------- Layout 2 ASCII 0 Keyboard 1 Movement Numpad Keybinds 0 Fullscreen 2 Font 18/SmallcapsGlow Map View 76x59 Zoom Use 0% Tactical HUD 1 Map Filters NONE Filters NONE Steam 1 RUN: 63af1b9f-23b2-4398-8288-840efa76b953